Cogmind - Beta 16 @@@ ROGUE MODE // 2025.12.27 @ 00:51:48 Player: Moose Result: Destroyed by G-34 Mercenary with Small Laser Performance ------------- Evolutions (1) 500 Regions Visited (2) 400 Robots Destroyed (34) 170 Value Destroyed (743) 743 Prototype IDs (7) 140 Alien Tech Used (0) 0 Bonus (0) 0 TOTAL SCORE: 1953 Bonus ------- None Cogmind --------- Core Integrity 0/400 Matter 116/300 Energy 100/100 System Corruption 2% Temperature Cool (6) Movement Core (350) Ox6 Location -9/Materials Parts ------- > --- POWER (1) -------- (None) > --- PROPULSION (3) --- (None) > --- UTILITY (3) ------ Large Storage Unit Visual Processing Unit Improved Signal Interpreter > --- WEAPON (2) ------- (None) > --- INVENTORY (15) --- Light Ion Engine Medium Storage Unit High-capacity Battery (250) Sensor Array Terrain Scan Processor Improved Terrain Scan Processor Salvage Targeting Computer ECM Suite Peak State ------------ > --- POWER ------------ Light Ion Engine > --- PROPULSION ------- Aluminum Leg Aluminum Leg Aluminum Leg > --- UTILITY ---------- Large Storage Unit Visual Processing Unit Improved Signal Interpreter > --- WEAPON ----------- Medium Laser Autogun > --- INVENTORY -------- Light Ion Engine Aluminum Leg Airjet High-capacity Battery Sensor Array Improved Terrain Scan Processor [Rating: 14] Favorites ----------- Power Light Ion Engine Engine Light Ion Engine Propulsion Aluminum Leg Leg Aluminum Leg Utility Large Storage Unit Storage Large Storage Unit Processor Visual Processing Unit Weapon Medium Laser Energy Gun Medium Laser Energy Cannon Advanced Beam Cannon Ballistic Gun Autogun Build | -11 -10 -9 ------- Run | Yrd Mat Mat Slots Evolved 2 | . . 2 Power . | . . . Propulsion 1 | . . 1 Utility 1 | . . 1 Weapon . | . . . Parts Attached 30 | 6 11 13 Power 6 | 1 2 3 Engine 6 | 1 2 3 Core . | . . . Reactor . | . . . Propulsion 11 | 2 4 5 Treads . | . . . Leg 11 | 2 4 5 Wheel . | . . . Hover . | . . . Flight . | . . . Utility 6 | 1 2 3 Device . | . . . Storage 3 | 1 1 1 Processor 3 | . 1 2 Hackware . | . . . Protection . | . . . Artifact . | . . . Weapon 7 | 2 3 2 Energy Gun 4 | 1 3 . Energy Cannon 1 | . . 1 Ballistic Gun 2 | 1 . 1 Ballistic Cannon . | . . . Launcher . | . . . Special Weapon . | . . . Impact Weapon . | . . . Slashing Weapon . | . . . Piercing Weapon . | . . . Special Melee Weapon . | . . . Unidentified Prototypes 2 | . . 2 Parts Lost 9 | . . 9 Power 3 | . . 3 Propulsion 4 | . . 4 Utility . | . . . Weapon 2 | . . 2 Highest Loss Streak 7 | . . 7 To Critical Strikes . | . . . Average Backups 5 | 1 3 7 Power . | . . . Propulsion 1 | . . 2 Utility 2 | . 1 3 Weapon . | 1 . . Tool/Special . | . . . Unused Backups 20 | . 1 19 Power 1 | . . 1 Propulsion 3 | . . 3 Utility 11 | . 1 10 Weapon 5 | . . 5 Tool/Special . | . . . Average Slot Usage (%) 94 | . 89 98 Engine 11 | . 13 10 Leg 30 | . 27 32 Storage 12 | . 14 11 Processor 15 | . 5 21 Energy Gun 15 | . 21 11 Ballistic Gun 8 | . 5 10 Peak Build Rating 14 | 6 7 14 Average Rating 9 | 3 6 12 On Entrance 4 | . 6 7 Avg Prop Armor Cover (%) . | . . . Naked Turns . | . . . Heaviest Build 30 | 12 12 30 Greatest Support 30 | 20 20 30 Greatest Overweight (x) 2 | 2 1 1 Average Overweight (x) . | . . . Largest Inventory Capacity 25 | 8 25 15 Average Capacity 11 | 7 8 14 Most Carried 15 | 6 8 15 Average Carried 5 | 2 3 7 Final Capacity 15 | 8 8 15 Final Carried 8 | 2 5 8 Class Distribution -------------------- 62% | Scavenger-Mutant 37% | Mutant Dominant Class ---------------- Mutant | -10/Materials Scavenger-Mutant | -9/Materials Resources | -11 -10 -9 ----------- Run | Yrd Mat Mat Matter Collected 628 | 180 257 191 Remotely . | . . . Salvage Created 934 | . 437 497 Parts 62 | . 21 41 Haulers Intercepted . | . . . Recyclers Shooed 1 | . . 1 Parts Field Recycled . | . . . Retrieved Matter . | . . . Parts Self-Destructed . | . . . Prevented . | . . . Parts Restored . | . . . Kills | -11 -10 -9 ------- Run | Yrd Mat Mat Combat Hostiles Destroyed 29 | . 11 18 Guns 29 | . 11 18 Classes Destroyed 5 | . 4 1 Worker 3 | . 2 1 Watcher 2 | . 1 1 Swarmer 14 | . 3 11 Grunt 13 | . 8 5 Sentry 2 | . . 2 Best Kill Streak 8 | . 8 6 Combat Bots Only 7 | . 7 6 Max Kills in Single Turn 2 | . 1 2 Gunslinging 1 | . . 1 Exploded . | . . . Melee . | . . . Uniques/NPCs Destroyed . | . . . Combat | -11 -10 -9 -------- Run | Yrd Mat Mat Hostile Shots Fired 177 | . 64 113 Missed 61 | . 21 40 Hits 116 | . 43 73 Melee 15 | . . 15 Projectile 101 | . 43 58 Critical Strikes 4 | . 1 3 Damage Taken 1676 | . 526 1150 Core 528 | . 121 407 Absorbed by Shields . | . . . Core Remaining (%) 75 | 100 51 . Volleys Fired 95 | . 36 59 Largest 2 | . 2 2 Hottest 90 | . 90 73 Shots Fired 187 | . 72 115 Gun 187 | . 72 115 Cannon . | . . . Launcher . | . . . Special . | . . . Kinetic 76 | . 19 57 Thermal 111 | . 53 58 Explosive . | . . . Electromagnetic . | . . . Robot Hit Streak 7 | . 7 7 Robot Miss Streak 4 | . 3 4 Penetration Max . | . . . Secondary Targets 4 | . 1 3 Max Gunslinging Chain 1 | . 1 1 Shots Hit Robots 109 | . 46 63 Core Hits 55 | . 26 29 Critical Kills . | . . . Critical Parts Destroyed . | . . . Critical Strikes 9 | . 3 6 Burn 9 | . 3 6 Melee Attacks . | . . . Impact . | . . . Slashing . | . . . Piercing . | . . . Sneak Attacks . | . . . Combat Hostiles . | . . . Follow-up Attacks . | . . . Damage Inflicted 1484 | . 585 899 Guns 1469 | . 581 888 Cannons . | . . . Explosions . | . . . Melee . | . . . Ramming 15 | . 4 11 Kinetic 594 | . 181 413 Thermal 875 | . 400 475 Explosive . | . . . Electromagnetic . | . . . Impact . | . . . Slashing . | . . . Piercing . | . . . Highest Corruption 2 | . . 2 Average Corruption 2 | . . 2 Corruption Purged . | . . . Corruption Blocked . | . . . Effects 3 | . . 3 Energy Discharges 1 | . . 1 Parts Rejected 2 | . . 2 Overload Shots . | . . . Overflow Damage . | . . . Projectiles . | . . . Explosions . | . . . Melee . | . . . Knockbacks 2 | . . 2 Impact 2 | . . 2 Kinetic . | . . . Secondary . | . . . Self-Inflicted Damage . | . . . Shots . | . . . Rammed 3 | . . 3 Targets Rammed 10 | . 3 7 Kicked 7 | . 3 4 Crushed . | . . . Highest Temperature 330 | . 330 231 Average Temperature 74 | . 117 39 Received Heat Transfer 444 | . 267 177 Effects 5 | . 5 . Energy Bleed 3 | . 3 . Interference 2 | . 2 . Siege Activations . | . . . Martial Activations . | . . . Shielding Activations . | . . . Robots Disrupted . | . . . Combat Hostiles . | . . . Robots Corrupted . | . . . Combat Hostiles . | . . . Parts Fried . | . . . Impact Corruptions . | . . . Robots Melted . | . . . Combat Hostiles . | . . . Parts Melted 11 | . 3 8 Heat Transferred 3185 | . 1335 1850 Parts Sabotaged . | . . . Parts Stolen . | . . . Parts Stripped . | . . . Power Chain Reactions . | . . . Alert | -11 -10 -9 ------- Run | Yrd Mat Mat Maximum Alert Level . | . . . Low Security (%) 100 | 100 100 100 Level 1 . | . . . Level 2 . | . . . Level 3 . | . . . Level 4 . | . . . Level 5 . | . . . High Security . | . . . Max Security . | . . . Peak Influence 194 | . 194 149 Initial 53 | . . 53 Average 66 | . 119 34 Influence Increases 818 | . 350 468 Destroy 0b10 Robot/C 580 | . 220 360 Destroy 0b10 Robot/NC 25 | . 15 10 Destroy Leader 114 | . 52 62 Successful Hack 36 | . 18 18 Disable Machine 15 | . . 15 Destroy Structure 3 | . . 3 Lose Combat Pursuer 45 | . 45 . Influence Decreases 818 | . 221 597 Entered New Map 76 | . . 76 Time Decay 561 | . 221 340 Lost Part 40 | . . 40 Purge Threat 141 | . . 141 Squads Dispatched 3 | . 2 1 Investigation 3 | . 2 1 Extermination . | . . . Reinforcement . | . . . Assault . | . . . Garrison . | . . . Intercept . | . . . Searches Triggered . | . . . Construction Impeded . | . . . Haulers Reinforced . | . . . Active Scanning Responses . | . . . Cargo Convoy Interrupts . | . . . Stealth | -11 -10 -9 --------- Run | Yrd Mat Mat Distress Signals 1 | . . 1 Communications Jammed . | . . . Distress Signals . | . . . Times Spotted 40 | . 17 23 Peak Tracking Total 6 | . 4 6 Tactical Retreats 2 | . 2 . Traps | -11 -10 -9 ------- Run | Yrd Mat Mat Traps Triggered 6 | . 4 2 Indirectly . | . . . Trap Hack Attempts . | . . . Triggered . | . . . Disarmed . | . . . Reprogrammed 4 | . . 4 Reused . | . . . Traps Extracted . | . . . Installed . | . . . Triggered . | . . . Machines | -11 -10 -9 ---------- Run | Yrd Mat Mat Machines Disabled 1 | . . 1 Max in Single Turn 1 | . . 1 Machines Repaired . | . . . Machines Dismantled . | . . . Machines Sabotaged . | . . . Overloaded Fab Kills . | . . . Hacking | -11 -10 -9 --------- Run | Yrd Mat Mat Machines Accessed 7 | . 3 4 Terminals 6 | . 3 3 Fabricators . | . . . Repair Stations . | . . . Recycling Units 1 | . . 1 Scanalyzers . | . . . Garrison Access . | . . . Total Hacks 30 | . 14 16 Successful 15 | . 5 10 Failed 15 | . 9 6 Catastrophic 2 | . 2 . Database Lockouts . | . . . Manual . | . . . Terminals 28 | . 14 14 Fabricators . | . . . Repair Stations . | . . . Recycling Units 2 | . . 2 Scanalyzers . | . . . Garrison Access . | . . . Terminal Hacks 14 | . 5 9 Prototype ID Bank 3 | . 1 2 Unreport Threat 2 | . . 2 Locate Traps 2 | . 1 1 Reprogram Traps 1 | . . 1 Dispatch Records 3 | . 1 2 Patrol Status 1 | . . 1 Registered Components 1 | . 1 . Registered Prototypes 1 | . 1 . Fabricator Hacks . | . . . Repair Station Hacks . | . . . Recycling Unit Hacks 1 | . . 1 Report Inventory 1 | . . 1 Scanalyzer . | . . . Garrison Access Hacks . | . . . Unauthorized Hacks . | . . . Terminals . | . . . Fabricators . | . . . Repair Stations . | . . . Recycling Units . | . . . Scanalyzers . | . . . Garrison Access . | . . . Data Cores Recovered . | . . . Used . | . . . Hacking Detections 6 | . 3 3 Full Trace Events 3 | . 2 1 Feedback Events . | . . . Feedback Blocked . | . . . Robot Schematics Acquired . | . . . Robots Built . | . . . Authchips . | . . . Time . | . . . Total Robot Build Rating . | . . . Part Schematics Acquired . | . . . Parts Built . | . . . Authchips . | . . . Time . | . . . Total Part Build Rating . | . . . Part Studies Acquired . | . . . Parts Repaired . | . . . Time . | . . . Parts Recycled . | . . . Recycled Matter . | . . . Retrieved Matter . | . . . Retrieved Components . | . . . Parts Scanalyzed . | . . . Part Schematics Acquired . | . . . Parts Damaged . | . . . Bothacking | -11 -10 -9 ------------ Run | Yrd Mat Mat Used RIF Installer . | . . . Robots Hacked . | . . . Non-combat . | . . . Combat . | . . . Robot Hacks Applied . | . . . Relay Couplers Released . | . . . Fabnet Peak Effective % . | . . . Robots Rewired . | . . . Allies Hacked . | . . . Hacks Repelled . | . . . Allies | -11 -10 -9 -------- Run | Yrd Mat Mat Total Allies . | . . . Largest Group . | . . . Highest-Rated Group . | . . . Highest-Rated Ally . | . . . Total Orders . | . . . Ally Attacks . | . . . Total Damage . | . . . Kills . | . . . Allies Corrupted . | . . . Allies Melted . | . . . Intel | -11 -10 -9 ------- Run | Yrd Mat Mat Active Infowar (turns) 889 | . . 889 Optics 889 | . . 889 Robot Analysis Total . | . . . Derelict Logs Recovered . | . . . Drone Launches . | . . . Drone Recoveries . | . . . Exploration | -11 -10 -9 ------------- Run | Yrd Mat Mat Turns Passed 1592 | 76 625 891 Spaces Moved 989 | 53 393 543 Core 25 | 22 3 . Treads . | . . . Legs 964 | 31 390 543 Wheels . | . . . Hover . | . . . Flight . | . . . Fastest Speed 50 | 50 100 120 Average Speed 119 | 119 119 120 Slowest Speed 190 | 150 120 190 Overloaded Moves . | . . . Propulsion Burnouts . | . . . Robots Hopped . | . . . Potential Cave-ins . | . . . Cave-ins Triggered . | . . . Exploration Rate (%) 28 | 5 46 34 Regions Visited 2 Branch Regions . Pre-discovered Areas . | . . . Known Exits Taken 1 | . 1 . Unknown Exits Taken 1 | 1 . . Scrap Searched . | . . . Spaces Dug . | . . . Terrain Destroyed . | . . . Melee . | . . . Projectile . | . . . AOE . | . . . Terrain Rammed . | . . . Walls Destroyed . | . . . Machines Disabled . | . . . Actions | -11 -10 -9 --------- Run | Yrd Mat Mat Total 1213 | 66 476 671 Wait . | . . . Move 987 | 52 392 543 Hop . | . . . Pick Up 56 | 8 20 28 Fast Attach . | . . . Attach 24 | 6 9 9 Detach 1 | . 1 . Swap 15 | . 6 9 Drop 25 | . 9 16 Fire 95 | . 36 59 Melee . | . . . Ram 3 | . . 3 Kick 7 | . 3 4 Crush . | . . . Escape Stasis . | . . . Rewire . | . . . Trap . | . . . Miscellaneous . | . . . Route ------- -11/Scrapyard -10/Materials (discovered 2 exits: *Mat / [*Min]) -9/Materials History --------- Turn | Location | Event 13 | -11/Scrapyard | Discovered new exit (range 16) 77 | -11/Scrapyard | Entered Materials 224 | -10/Materials | Discovered new exit (range 9) 299 | -10/Materials | Destroyed 7 combat bots 366 | -10/Materials | Build established: Mutant 681 | -10/Materials | Discovered new exit (range 16) 701 | -10/Materials | Identified exit to Materials 702 | -10/Materials | Entered another Materials area 702 | -9/Materials | Evolved 2 slots: Propulsion x1, Utility x1 899 | -9/Materials | Build established: Scavenger-Mutant 1577 | -9/Materials | Core integrity fell below 50% 1589 | -9/Materials | Core integrity fell below 20% 1593 | -9/Materials | Destroyed by G-34 Mercenary with Small Laser Last Messages --------------- Ion Engine destroyed. Aluminum Leg destroyed. K-01 Serf cleans the Terminal. Autogun destroyed. K-01 Serf collects debris. Aluminum Leg destroyed. Med. Laser destroyed. Aluminum Leg destroyed. Kicked L-31 Rogue. Kicked L-31 Rogue out of the way. L-31 Rogue knocked back. Kicked L-31 Rogue. Aluminum Leg destroyed. Kicked L-31 Rogue. L-31 Rogue knocked back. Aluminum Leg severed. Slammed into L-31 Rogue. System corrupted: Lgt. Ion Engine rejected. R-06 Scavenger collects Sml. Laser. Slammed into L-31 Rogue. Map ----- +----------------------------------------------------+ | ????????????????????????????????? ?????????????? | | ????????????????????????????????# #????????????? | | ????????????????????????????????# #????????????? | | ????????????????????????????????# +????????????? | | ????????????????????????????????# #????????????? | | ???????????????????????????????? #????????????? | | ????????????????????????????????# #????????????? | | ????????????????????????????????# #????????????? | | ????????????????????????????????# #????????????? | | ????????????????????????????????# #????????????? | | ????????????????????????????????# #????????????? | | ????????????????????????????????# #????????????? | | ????????????????????????????????# #????????????? | | ????????????????????????????????# #????????????? | | ?????????????????????????????####^^^#????######### | | ????????????????????????????##! ^ ^#????# | | ????????????????????????????#! ###### | | ????????????????????????????#! ##]!!# | | ????????????????????????????# ##]!=# | | ????????????????????????????#! ##] # | | ????????????????????????????##! ## # | | ????????????????????? ???????#### ## # | | ????????????????????# #?????????# ##= # | | ??????????? ????????# #?????????# ## # | | ????????? ????##### ########### ###+######+### | | ????????? ????# % l@ | | ??????????= ???# * | | ?????????? ???# g= | | ??????????? %???# r ##### ######## | | ?????#######+#??# a##### #???# #??????? | | ?????? !![###k u #???# #???# #??????? | | ??????? ###?# #???# #??????? | | ???????? ""#?# #???# #??????? | | ????????### [[[ T"#?# #???# #??????? | | ??????????# [[[ k% ""#?# #???# #??????? | | ??????????# [[[ """ ######+####?? ???????? | | ########### % ! "%*# [ #?? ???????? | | =%=% "! # #?? ???????? | | === # """ #??+???????? | | [%%*% r # """ #??????????? | | ???###### "" # """ #??????????? | | ????????# "T k # """ #??????????? | | ????????# "" # """ #??????????? | | ????????# # "T" #??????????? | | ????????# ###########??????????? | | ????########+#####""#"" #????????########????? | | ????# ####### ##????????# #????? | | ????# """"%"""" ####### #?????????# """ =#????? | | ????# """" """" # # #?????????# "Y" #????? | | ????# """" """" + + +?????????# #????? | +----------------------------------------------------+ Best States ------------- Heat Dissipation 28 Energy Generation 10 Energy Capacity 250 Matter Stores 300 Matter Capacity 300 Sight Range 18 Terrain Scan Density 10 Evasion (%) 55 Item Schematics ----------------- None Robot Schematics ------------------ None Fabricated ------------ Nothing Repaired ---------- Nothing Studied --------- None Alien Tech Used ----------------- None Achievements -------------- None Challenges ------------ None Game ------ Seed MiningSchematicPenetrator Manual? 0 Play Time 00:18:35 Cumulative 10.0 hours Start 2025.12.27 @ 00:34:56 End 2025.12.27 @ 00:51:48 Sessions 1 Manual Loads 0 Difficulty Rogue Special Mode None Game No. 28 Rogue 28 Adventurer 0 Explorer 0 Win Type - Total 0 Types 0/0/0/0/0/0/0/0/0/0 Lore% 4 Gallery% 13 Achievement% 12 Wizard Run 0 Options --------- Layout 1 ASCII 0 Keyboard 0 Movement Arrows Keybinds 0 Fullscreen 1 Font 16/SmallcapsGlow Map View 55x38 Zoom Use 0% Tactical HUD 0 Map Filters NONE Filters NONE Steam 1 RUN: f5ed05b4-8fc5-40f0-ba63-897555119e3c